fUST/lending_fUST_20250424
["ID","MTS","AMOUNT","RATE_DAILY","PERIOD"]
[358813245,1745459439357,-505.04535329,0.00021917,2]
[358813246,1745459439367,-500.0,0.00021917,2]
[358813247,1745459439378,-511.2,0.00021917,2]
[358813248,1745459439388,-500.0,0.00021917,2]
[358813249,1745459439398,-1423.59,0.00021917,2]
[358813250,1745459439408,-502.06743667,0.00021917,2]
[358813251,1745459439418,-500.0,0.00021917,2]
[358813252,1745459439561,-500.0,0.00021917,2]
[358813253,1745459439573,-500.0,0.00021917,2]
[358813254,1745459439583,-500.0,0.00021917,2]
[358813255,1745459439593,-507.00392296,0.00021917,2]
[358813256,1745459439603,-500.0,0.00021917,2]
[358813257,1745459439614,-500.0,0.00021917,2]
[358813258,1745459439624,-503.40220622,0.00021917,2]
[358813259,1745459439633,-500.7774595,0.00021917,2]
[358813260,1745459439644,-500.0,0.00021917,2]
[358813261,1745459439654,-500.0,0.00021917,2]
[358813262,1745459439663,-500.0,0.00021917,2]
[358813263,1745459439673,-500.0,0.00021917,2]
[358813264,1745459439683,-500.0,0.00021917,2]
[358813265,1745459439692,-500.0,0.00021917,2]
[358813266,1745459439702,-534.31102136,0.00021917,2]
[358813267,1745459439711,-500.0,0.00021917,2]
[358813268,1745459439720,-500.0,0.00021917,2]
[358813269,1745459439734,-500.0,0.00021917,2]
[358813270,1745459439743,-500.0,0.00021917,2]
[358813271,1745459439753,-185.55971792,0.00021917,2]
[358813272,1745459439762,-1052.58,0.00021917,2]
[358813273,1745459439772,-500.0,0.00021917,2]
[358813274,1745459439781,-500.0,0.00021917,2]
[358813275,1745459439791,-500.0,0.00021917,2]
[358813276,1745459439800,-502.27470637,0.00021917,2]
[358813277,1745459439809,-500.0,0.00021917,2]
[358813278,1745459439818,-787.64,0.00021917,2]
[358813279,1745459439828,-501.69771574,0.00021917,2]
[358813280,1745459439837,-500.0,0.00021917,2]
[358813281,1745459439847,-500.0,0.00021917,2]
[358813283,1745459439857,-474.28460488,0.00021917,2]
[358813285,1745459439866,-500.0,0.00021917,2]
[358813286,1745459439876,-505.46528467,0.00021917,2]
[358813287,1745459439886,-963.8,0.00021917,2]
[358813288,1745459439895,-963.8,0.00021917,2]
[358813289,1745459439904,-963.8,0.00021917,2]
[358813290,1745459439914,-963.8,0.00021917,2]
[358813291,1745459439923,-963.8,0.00021917,2]
[358813292,1745459439933,-963.8,0.00021917,2]
[358813293,1745459439943,-963.8,0.00021917,2]
[358813294,1745459439953,-963.8,0.00021917,2]
[358813295,1745459439964,-963.8,0.00021917,2]
[358813297,1745459439973,-1007.6,0.00021917,2]
[358813298,1745459439983,-963.8,0.00021917,2]
[358813299,1745459439993,-963.8,0.00021917,2]
[358813300,1745459440003,-963.8,0.00021917,2]
[358813301,1745459440013,-963.8,0.00021917,2]
[358813302,1745459440023,-500.0,0.00021917,2]
[358813303,1745459440032,-963.8,0.00021917,2]
[358813304,1745459440042,-963.8,0.00021917,2]
[358813305,1745459440052,-500.0,0.00021917,2]
[358813306,1745459440061,-406.24853757,0.00021917,2]
[358813307,1745459440071,-1683.76,0.00021917,2]
[358813308,1745459440081,-500.0,0.00021917,2]
[358813309,1745459440090,-1000.0,0.00021917,2]
[358813310,1745459440099,-500.0,0.00021917,2]
[358813311,1745459440109,-629.45,0.00021917,2]
[358813313,1745459440119,-501.02104774,0.00021917,2]
[358813315,1745459440130,-768.88,0.00021917,2]
[358813316,1745459440139,-500.0,0.00021917,2]
[358813317,1745459440151,-500.0,0.00021917,2]
[358813318,1745459440164,-500.0,0.00021917,2]
[358813319,1745459440174,-870.76,0.00021917,2]
[358813320,1745459440184,-870.76,0.00021917,2]
[358813321,1745459440194,-870.76,0.00021917,2]
[358813322,1745459440205,-870.76,0.00021917,2]
[358813323,1745459440217,-870.76,0.00021917,2]
[358813324,1745459440229,-870.76,0.00021917,2]
[358813325,1745459440239,-870.76,0.00021917,2]
[358813326,1745459440248,-870.76,0.00021917,2]
[358813327,1745459440258,-870.76,0.00021917,2]
[358813328,1745459440268,-500.0,0.00021917,2]
[358813329,1745459440278,-870.76,0.00021917,2]
[358813330,1745459440289,-870.76,0.00021917,2]
[358813331,1745459440299,-870.76,0.00021917,2]
[358813332,1745459440308,-870.76,0.00021917,2]
[358813333,1745459440318,-870.76,0.00021917,2]
[358813334,1745459440327,-500.0,0.00021917,2]
[358813335,1745459440337,-870.76,0.00021917,2]
[358813336,1745459440346,-870.76,0.00021917,2]
[358813337,1745459440356,-870.76,0.00021917,2]
[358813338,1745459440366,-870.76,0.00021917,2]
[358813339,1745459440376,-870.76,0.00021917,2]
[358813340,1745459440386,-870.76,0.00021917,2]
[358813341,1745459440395,-870.76,0.00021917,2]
[358813342,1745459440405,-870.76,0.00021917,2]
[358813343,1745459440414,-870.76,0.00021917,2]
[358813344,1745459440424,-870.94386726,0.00021917,2]
[358813345,1745459440433,-5606.31,0.00021917,2]
[358813346,1745459440443,-5606.31,0.00021917,2]
[358813347,1745459440453,-5606.31,0.00021917,2]
[358813348,1745459440464,-5606.31,0.00021917,2]
[358813349,1745459440473,-5606.31,0.00021917,2]
[358813350,1745459440483,-1257.76,0.00021917,2]
[358813351,1745459440492,-5606.31,0.00021917,2]
[358813352,1745459440501,-5606.31,0.00021917,2]
[358813353,1745459440511,-5606.31,0.00021917,2]
[358813354,1745459440520,-5606.31,0.00021917,2]
[358813355,1745459440529,-5606.31,0.00021917,2]
[358813356,1745459440539,-5606.31,0.00021917,2]
[358813357,1745459440549,-5606.31,0.00021917,2]
[358813358,1745459440558,-5606.31,0.00021917,2]
[358813359,1745459440568,-5606.31,0.00021917,2]
[358813360,1745459440577,-5606.31,0.00021917,2]
[358813361,1745459440586,-500.0,0.00021917,2]
[358813362,1745459440596,-500.0,0.00021917,2]
[358813363,1745459440607,-502.67361764,0.00021917,2]
[358813364,1745459440616,-500.0,0.00021917,2]
[358813365,1745459440626,-506.26756306,0.00021917,2]
[358813366,1745459440636,-500.0,0.00021917,2]
[358813367,1745459440645,-500.0,0.00021917,2]
[358813368,1745459440655,-501.60441298,0.00021917,2]
[358813369,1745459440664,-500.0,0.00021917,2]
[358813370,1745459440674,-500.0,0.00021917,2]
[358813371,1745459440684,-500.0,0.00021917,2]
[358813372,1745459440693,-500.11095084,0.00021917,2]
[358813373,1745459440703,-502.40224287,0.00021917,2]
[358813374,1745459440713,-500.0,0.00021917,2]
[358813375,1745459440722,-500.0,0.00021917,2]
[358813376,1745459440732,-276.96975461,0.00021917,2]
[358813377,1745459440741,-500.0,0.00021917,2]
[358813378,1745459440751,-270.04147169,0.00021917,2]
[358813379,1745459440760,-500.0,0.00021917,2]
[358813380,1745459440769,-500.0,0.00021917,2]
[358813381,1745459440778,-792.9,0.00021917,2]
[358813382,1745459440788,-500.0,0.00021917,2]
[358813383,1745459440802,-500.0,0.00021917,2]
[358813384,1745459440816,-500.0,0.00021917,2]
[358813385,1745459440826,-500.0,0.00021917,2]
[358813386,1745459440835,-500.0,0.00021917,2]
[358813387,1745459440846,-500.0,0.00021917,2]
[358813388,1745459440856,-500.0,0.00021917,2]
[358813389,1745459440867,-500.0,0.00021917,2]
[358813390,1745459440876,-500.0,0.00021917,2]
[358813391,1745459440886,-500.0,0.00021917,2]
[358813392,1745459440897,-500.0,0.00021917,2]
[358813393,1745459440906,-500.0,0.00021917,2]
[358813394,1745459440916,-500.0,0.00021917,2]
[358813395,1745459440925,-500.0,0.00021917,2]
[358813396,1745459440934,-500.0,0.00021917,2]
[358813397,1745459440944,-505.24336812,0.00021917,2]
[358813398,1745459440954,-500.0,0.00021917,2]
[358813399,1745459440965,-500.0,0.00021917,2]
[358813400,1745459440974,-500.0,0.00021917,2]
[358813401,1745459440984,-501.15594124,0.00021917,2]
[358813402,1745459440993,-503.06051988,0.00021917,2]
[358813403,1745459441002,-500.0,0.00021917,2]
[358813404,1745459441011,-500.0,0.00021917,2]
[358813405,1745459441021,-500.0,0.00021917,2]
[358813406,1745459441031,-502.02862867,0.00021917,2]
[358813407,1745459441040,-500.0,0.00021917,2]
[358813408,1745459441050,-500.0,0.00021917,2]
[358813409,1745459441059,-964.54,0.00021917,2]
[358813410,1745459441069,-326.35063124,0.00021917,2]
[358813411,1745459441078,-687.92,0.00021917,2]
[358813412,1745459441088,-500.0,0.00021917,2]
[358813413,1745459441097,-502.88057313,0.00021917,2]
[358813414,1745459441107,-507.66014742,0.00021917,2]
[358813415,1745459441116,-500.53962334,0.00021917,2]
[358813416,1745459441126,-504.00011293,0.00021917,2]
[358813417,1745459441135,-639.40498532,0.00021917,2]
[358813418,1745459441144,-500.0,0.00021917,2]
[358813419,1745459441155,-515.25885162,0.00021917,2]
[358813420,1745459441166,-500.0,0.00021917,2]
[358813421,1745459441175,-504.83038268,0.00021917,2]
[358813422,1745459441185,-500.57345766,0.00021917,2]
[358813423,1745459441194,-637.09266458,0.00021917,2]
[358813424,1745459441205,-500.0,0.00021917,2]
[358813425,1745459441215,-500.0,0.00021917,2]
[358813426,1745459441224,-500.0,0.00021917,2]
[358813427,1745459441234,-500.0,0.00021917,2]
[358813428,1745459441244,-500.0,0.00021917,2]
[358813429,1745459441253,-500.0,0.00021917,2]
[358813430,1745459441262,-500.0,0.00021917,2]
[358813431,1745459441272,-503.77179512,0.00021917,2]
[358813432,1745459441281,-500.0,0.00021917,2]
[358813433,1745459441290,-500.0,0.00021917,2]
[358813434,1745459441299,-500.0,0.00021917,2]
[358813435,1745459441308,-500.0,0.00021917,2]
[358813436,1745459441319,-500.0,0.00021917,2]
[358813437,1745459441330,-500.0,0.00021917,2]
[358813438,1745459441340,-500.0,0.00021917,2]
[358813439,1745459441350,-500.0,0.00021917,2]
[358813440,1745459441360,-500.0,0.00021917,2]
[358813441,1745459441370,-500.0,0.00021917,2]
[358813442,1745459441379,-500.0,0.00021917,2]
[358813443,1745459441389,-657.0,0.00021917,2]
[358813444,1745459441399,-500.0,0.00021917,2]
[358813445,1745459441408,-500.0,0.00021917,2]
[358813446,1745459441418,-500.0,0.00021917,2]
[358813447,1745459441427,-220.90366146,0.00021917,2]
[358813448,1745459441437,-506.51508837,0.00021917,2]
[358813449,1745459441447,-500.0,0.00021917,2]
[358813450,1745459441457,-500.0,0.00021917,2]
[358813451,1745459441467,-630.99,0.00021917,2]
[358813452,1745459441477,-500.0,0.00021917,2]
[358813453,1745459441487,-500.0,0.00021917,2]
[358813454,1745459441496,-500.0,0.00021917,2]
[358813455,1745459441506,-500.0,0.00021917,2]
[358813456,1745459441516,-500.0,0.00021917,2]
[358813457,1745459441526,-500.0,0.00021917,2]
[358813458,1745459441535,-500.0,0.00021917,2]
[358813459,1745459441547,-1433.5,0.00021917,2]
[358813460,1745459441558,-683.56,0.00021917,2]
[358813461,1745459441568,-500.0,0.00021917,2]
[358813462,1745459441577,-702.22,0.00021917,2]
[358813463,1745459441699,-479.61757413,0.00021917,2]
[358813464,1745459441709,-500.0,0.00021917,2]
[358813465,1745459441718,-506.02631522,0.00021917,2]
[358813466,1745459441728,-501.0266599,0.00021917,2]
[358813467,1745459441737,-765.41,0.00021917,2]
[358813468,1745459441747,-500.9846911,0.00021917,2]
[358813469,1745459441756,-630.06065371,0.00021917,2]
[358813470,1745459441766,-500.0,0.00021917,2]
[358813471,1745459441775,-504.0281952,0.00021917,2]
[358813472,1745459441785,-225.35876004,0.00021917,2]
[358813473,1745459441794,-635.42506148,0.00021917,2]
[358813474,1745459441804,-506.63083002,0.00021917,2]
[358813475,1745459441813,-1082.79,0.00021917,2]
[358813476,1745459441822,-372.67114753,0.00021917,2]
[358813477,1745459441832,-500.0,0.00021917,2]
[358813478,1745459441841,-500.0,0.00021917,2]
[358813479,1745459441850,-500.95991757,0.00021917,2]
[358813480,1745459441860,-507.65054434,0.00021917,2]
[358813481,1745459441870,-500.0,0.00021917,2]
[358813482,1745459441879,-500.0,0.00021917,2]
[358813483,1745459441889,-500.0,0.00021917,2]
[358813484,1745459441899,-584.32,0.00021917,2]
[358813485,1745459441909,-500.0,0.00021917,2]
[358813486,1745459441918,-500.0,0.00021917,2]
[358813487,1745459441928,-1458.17,0.00021917,2]
[358813488,1745459441937,-920.62,0.00021917,2]
[358813489,1745459441948,-500.0,0.00021917,2]
[358813490,1745459441957,-507.78243595,0.00021917,2]
[358813491,1745459441968,-500.0,0.00021917,2]
[358813492,1745459441977,-500.0,0.00021917,2]
[358813493,1745459441987,-500.0,0.00021917,2]
[358813494,1745459441997,-500.0,0.00021917,2]
[358813495,1745459442007,-500.0,0.00021917,2]
[358813496,1745459442016,-505.39282575,0.00021917,2]
[358813497,1745459442025,-505.31200336,0.00021917,2]
[358813498,1745459442035,-1289.52,0.00021917,2]
[358813499,1745459442046,-3433.32,0.00021917,2]
[358813500,1745459442055,-500.0,0.00021917,2]
[358813501,1745459442064,-503.30082662,0.00021917,2]
[358813502,1745459442073,-512.20182967,0.00021917,2]
[358813503,1745459442083,-502.92343976,0.00021917,2]
[358813504,1745459442092,-500.0,0.00021917,2]
[358813505,1745459442101,-500.0,0.00021917,2]
[358813506,1745459442111,-629.59,0.00021917,2]
[358813507,1745459442120,-1277.35,0.00021917,2]
[358813508,1745459442129,-500.0,0.00021917,2]
[358813509,1745459442139,-500.0,0.00021917,2]
[358813510,1745459442150,-500.34648851,0.00021917,2]
[358813511,1745459442160,-758.59,0.00021917,2]
[358813512,1745459442171,-500.0,0.00021917,2]
[358813513,1745459442180,-500.0,0.00021917,2]
[358813514,1745459442189,-541.73,0.00021917,2]
[358813515,1745459442199,-1042.48,0.00021917,2]
[358813516,1745459442209,-502.40079546,0.00021917,2]
[358813517,1745459442218,-500.0,0.00021917,2]
[358813518,1745459442228,-500.0,0.00021917,2]
[358813519,1745459442238,-500.0,0.00021917,2]
[358813521,1745459442247,-500.0,0.00021917,2]
[358813522,1745459442257,-500.0,0.00021917,2]
[358813523,1745459442266,-500.0,0.00021917,2]
[358813524,1745459442279,-500.0,0.00021917,2]
[358813525,1745459442289,-500.0,0.00021917,2]
[358813526,1745459442299,-500.0,0.00021917,2]
[358813527,1745459442308,-500.0,0.00021917,2]
[358813528,1745459442318,-157.99606669,0.00021917,2]
[358813530,1745459442328,-541.79,0.00021917,2]
[358813532,1745459442338,-1010.1,0.00021917,2]
[358813533,1745459442347,-500.0,0.00021917,2]
[358813534,1745459442357,-500.0,0.00021917,2]
[358813535,1745459442367,-500.0,0.00021917,2]
[358813536,1745459442376,-503.51896174,0.00021917,2]
[358813537,1745459442385,-699.4,0.00021917,2]
[358813538,1745459442394,-503.62403034,0.00021917,2]
[358813539,1745459442404,-500.0,0.00021917,2]
[358813540,1745459442414,-538.75,0.00021917,2]
[358813541,1745459442423,-500.0,0.00021917,2]
[358813542,1745459442433,-1322.94,0.00021917,2]
[358813543,1745459442442,-215.91631969,0.00021917,2]
[358813544,1745459442452,-501.82272865,0.00021917,2]
[358813545,1745459442462,-506.57535323,0.00021917,2]
[358813546,1745459442472,-500.0,0.00021917,2]
[358813547,1745459442482,-1097.72,0.00021917,2]
[358813548,1745459442491,-500.0,0.00021917,2]
[358813549,1745459442501,-570.56674627,0.00021917,2]
[358813550,1745459442511,-502.76787948,0.00021917,2]
[358813551,1745459442521,-1002.86,0.00021917,2]
[358813552,1745459442531,-1293.11,0.00021917,2]
[358813554,1745459442541,-500.0,0.00021917,2]
[358813555,1745459442551,-500.0,0.00021917,2]
[358813556,1745459442561,-797.56,0.00021917,2]
[358813557,1745459442571,-504.75730629,0.00021917,2]
[358813558,1745459442580,-500.0,0.00021917,2]
[358813559,1745459442589,-501.4866331,0.00021917,2]
[358813560,1745459442600,-581.22,0.00021917,2]
[358813561,1745459442610,-500.0,0.00021917,2]
[358813562,1745459442619,-402.24934952,0.00021917,2]
[358813563,1745459442629,-500.0,0.00021917,2]
[358813564,1745459442638,-500.0,0.00021917,2]
[358813565,1745459442647,-500.0,0.00021917,2]
[358813566,1745459442656,-500.0,0.00021917,2]
[358813567,1745459442666,-500.0,0.00021917,2]
[358813568,1745459442675,-500.0,0.00021917,2]
[358813569,1745459442685,-500.0,0.00021917,2]
[358813570,1745459442694,-1013.80740899,0.00021917,2]
[358813571,1745459442703,-535.6,0.00021917,2]
[358813572,1745459442714,-500.0,0.00021917,2]
[358813573,1745459442723,-541.0,0.00021917,2]
[358813574,1745459442733,-501.56233678,0.00021917,2]
[358813575,1745459442743,-500.0,0.00021917,2]
[358813576,1745459442752,-500.0,0.00021917,2]
[358813577,1745459442762,-500.0,0.00021917,2]
[358813578,1745459442771,-500.0,0.00021917,2]
[358813579,1745459442780,-597.92,0.00021917,2]
[358813580,1745459442789,-500.0,0.00021917,2]
[358813581,1745459442798,-502.30753048,0.00021917,2]
[358813582,1745459442808,-382.39465726,0.00021917,2]
[358813583,1745459442817,-612.6,0.00021917,2]
[358813584,1745459442827,-1046.58,0.00021917,2]
[358813585,1745459442836,-1274.64,0.00021917,2]
[358813586,1745459442845,-500.0,0.00021917,2]
[358813587,1745459442855,-531.52247559,0.00021917,2]
[358813588,1745459442864,-778.08,0.00021917,2]
[358813589,1745459442873,-500.0,0.00021917,2]
[358813590,1745459442882,-500.0,0.00021917,2]
[358813591,1745459442892,-1115.16,0.00021917,2]
[358813592,1745459442901,-500.0,0.00021917,2]
[358813593,1745459442911,-500.0,0.00021917,2]
[358813594,1745459442920,-500.0,0.00021917,2]
[358813595,1745459442930,-500.0,0.00021917,2]
[358813596,1745459442939,-503.26303788,0.00021917,2]
[358813597,1745459442949,-500.52012928,0.00021917,2]
[358813598,1745459442958,-500.0,0.00021917,2]
[358813599,1745459442968,-500.0,0.00021917,2]
[358813600,1745459442978,-500.0,0.00021917,2]
[358813601,1745459442987,-501.73816248,0.00021917,2]
[358813602,1745459442996,-749.15,0.00021917,2]
[358813603,1745459443005,-507.77680117,0.00021917,2]
[358813605,1745459443015,-500.0,0.00021917,2]
[358813606,1745459443024,-501.27997662,0.00021917,2]
[358813607,1745459443033,-501.52118345,0.00021917,2]
[358813608,1745459443042,-903.46,0.00021917,2]
[358813609,1745459443052,-500.0,0.00021917,2]
[358813610,1745459443061,-500.0,0.00021917,2]
[358813611,1745459443071,-500.0,0.00021917,2]
[358813612,1745459443081,-500.0,0.00021917,2]
[358813613,1745459443092,-504.41,0.00021917,2]
[358813614,1745459443101,-500.0,0.00021917,2]
[358813615,1745459443111,-500.0,0.00021917,2]
[358813616,1745459443121,-500.0,0.00021917,2]
[358813617,1745459443131,-1259.06,0.00021917,2]
[358813618,1745459443140,-500.0,0.00021917,2]
[358813619,1745459443150,-500.0,0.00021917,2]
[358813620,1745459443163,-500.0,0.00021917,2]
[358813621,1745459443172,-500.0,0.00021917,2]
[358813622,1745459443182,-1805.97,0.00021917,2]
[358813623,1745459443192,-1511.41,0.00021917,2]
[358813624,1745459443201,-500.0,0.00021917,2]
[358813625,1745459443211,-513.48359907,0.00021917,2]
[358813626,1745459443220,-503.08316229,0.00021917,2]
[358813627,1745459443229,-500.0,0.00021917,2]
[358813628,1745459443239,-500.0,0.00021917,2]
[358813629,1745459443249,-504.10010214,0.00021917,2]
[358813630,1745459443259,-502.26916348,0.00021917,2]
[358813631,1745459443269,-500.0,0.00021917,2]
[358813632,1745459443278,-501.37751082,0.00021917,2]
[358813633,1745459443288,-504.63779754,0.00021917,2]
[358813634,1745459443298,-500.0,0.00021917,2]
[358813635,1745459443308,-500.0,0.00021917,2]
[358813636,1745459443317,-500.0,0.00021917,2]
[358813637,1745459443326,-500.0,0.00021917,2]
[358813638,1745459443336,-500.0,0.00021917,2]
[358813639,1745459443346,-500.0,0.00021917,2]
[358813640,1745459443355,-629.39,0.00021917,2]
[358813641,1745459443365,-500.0,0.00021917,2]
[358813642,1745459443375,-271.35412403,0.00021917,2]
[358813643,1745459443384,-1102.22,0.00021917,2]
[358813644,1745459443394,-511.86,0.00021917,2]
[358813645,1745459443404,-500.0,0.00021917,2]
[358813646,1745459443414,-500.0,0.00021917,2]
[358813647,1745459443423,-1001.64,0.00021917,2]
[358813648,1745459443433,-500.0,0.00021917,2]
[358813649,1745459443443,-500.0,0.00021917,2]
[358813650,1745459443453,-500.0,0.00021917,2]
[358813651,1745459443463,-202.17379418,0.00021917,2]
[358813652,1745459443474,-513.72305727,0.00021917,2]
[358813653,1745459443483,-600.46,0.00021917,2]
[358813654,1745459443493,-897.12,0.00021917,2]
[358813655,1745459443503,-500.0,0.00021917,2]
[358813656,1745459443513,-523.67276595,0.00021917,2]
[358813657,1745459443522,-500.0,0.00021917,2]
[358813658,1745459443532,-1310.42,0.00021917,2]
[358813659,1745459443640,-500.0,0.00021917,2]
[358813660,1745459443663,-554.86778701,0.00021917,2]
[358813661,1745459443673,-1030.54,0.00021917,2]
[358813662,1745459443682,-502.06544527,0.00021917,2]
[358813663,1745459443693,-500.0,0.00021917,2]
[358813664,1745459443702,-500.0,0.00021917,2]
[358813665,1745459443714,-151.0,0.00021917,2]
[358813666,1745459443725,-2901.41,0.00021917,2]
[358813667,1745459443734,-500.0,0.00021917,2]
[358813668,1745459443743,-523.73468278,0.00021917,2]
[358813669,1745459443752,-534.06,0.00021917,2]
[358813670,1745459443762,-501.03187602,0.00021917,2]
[358813671,1745459443771,-151.0,0.00021917,2]
[358813672,1745459443781,-500.0,0.00021917,2]
[358813673,1745459443791,-500.0,0.00021917,2]
[358813674,1745459443800,-500.0,0.00021917,2]
[358813675,1745459443809,-500.0,0.00021917,2]
[358813676,1745459443819,-462.09151359,0.00021917,2]
[358813677,1745459443828,-500.0,0.00021917,2]
[358813678,1745459443838,-506.12186867,0.00021917,2]
[358813679,1745459443847,-240.99709677,0.00021917,2]
[358813680,1745459443857,-504.28603977,0.00021917,2]
[358813681,1745459443867,-500.0,0.00021917,2]
[358813682,1745459443876,-500.0,0.00021917,2]
[358813683,1745459443886,-500.0,0.00021917,2]
[358813684,1745459443895,-500.0,0.00021917,2]
[358813685,1745459443904,-890.74,0.00021917,2]
[358813686,1745459443914,-500.0,0.00021917,2]
[358813687,1745459443923,-500.0,0.00021917,2]
[358813688,1745459443933,-502.62724625,0.00021917,2]
[358813689,1745459443942,-500.0,0.00021917,2]
[358813690,1745459443951,-500.0,0.00021917,2]
[358813691,1745459443961,-500.0,0.00021917,2]
[358813692,1745459443972,-500.0,0.00021917,2]
[358813693,1745459443982,-500.0,0.00021917,2]
[358813694,1745459443991,-500.0,0.00021917,2]
[358813695,1745459444000,-500.0,0.00021917,2]
[358813696,1745459444009,-3002.18,0.00021917,2]
[358813697,1745459444019,-3002.18,0.00021917,2]
[358813698,1745459444028,-3002.18,0.00021917,2]
[358813699,1745459444039,-691.646421,0.00021918,2]
[358813700,1745459444049,-151.0,0.00021918,2]
[358813701,1745459444059,-200.13538004,0.00021918,2]
[358813702,1745459444068,-722.2419673,0.00021938,2]
[358813703,1745459444079,-722.8462006,0.00021938,2]
[358813704,1745459444089,-833.7384628,0.00021938,2]
[358813705,1745459444101,-361.4231003,0.00021938,2]
[358813706,1745459444112,-361.4231003,0.00021938,2]
[358813707,1745459444121,-361.4231003,0.00021938,2]
[358813708,1745459444132,-361.4231003,0.00021938,2]
[358813709,1745459444143,-236.0,0.00022,2]
[358813710,1745459444154,-151.0,0.00022023,7]
[358813711,1745459444167,-151.0,0.00022023,7]
[358813712,1745459444177,-151.0,0.00022023,7]
[358813713,1745459444187,-361.4231003,0.00022023,2]
[358813714,1745459444198,-361.4231003,0.00022023,2]
[358813715,1745459444208,-500.0,0.00022078,2]
[358813716,1745459444220,-831.49,0.00022078,2]
[358813717,1745459444230,-165.30089793,0.00022091,2]
[358813718,1745459444241,-722.8462006,0.00022123,2]
[358813719,1745459444251,-361.4231003,0.00022123,2]
[358813720,1745459444261,-361.4231003,0.00022123,2]
[358813721,1745459444270,-500.0,0.00022173,2]
[358813722,1745459444280,-500.0,0.00022173,2]
[358813723,1745459444289,-500.19844398,0.00022173,2]
[358813724,1745459444299,-500.0,0.00022173,2]
[358813725,1745459444309,-500.0,0.00022173,2]
[358813726,1745459444318,-500.0,0.00022173,2]
[358813727,1745459444328,-500.0,0.00022173,2]
[358813728,1745459444338,-500.0,0.00022173,2]
[358813729,1745459444348,-500.0,0.00022173,2]
[358813730,1745459444357,-500.0,0.00022173,2]
[358813731,1745459444366,-500.0,0.00022173,2]
[358813732,1745459444376,-500.0,0.00022173,2]
[358813733,1745459444385,-500.0,0.00022173,2]
[358813734,1745459444394,-500.0,0.00022173,2]
[358813735,1745459444404,-537.0928661,0.00022173,2]
[358813736,1745459444413,-500.0,0.00022173,2]
[358813737,1745459444423,-500.0,0.00022173,2]
[358813738,1745459444433,-500.0,0.00022173,2]
[358813739,1745459444442,-500.0,0.00022173,2]
[358813740,1745459444452,-500.0,0.00022173,2]
[358813741,1745459444461,-500.0,0.00022173,2]
[358813742,1745459444473,-500.0,0.00022173,2]
[358813743,1745459444483,-500.0,0.00022173,2]
[358813744,1745459444492,-500.0,0.00022173,2]
[358813745,1745459444502,-500.0,0.00022173,2]
[358813746,1745459444511,-500.0,0.00022173,2]
[358813747,1745459444521,-500.0,0.00022191,2]
[358813748,1745459444530,-500.0,0.00022191,2]
[358813749,1745459444539,-500.0,0.00022191,2]
[358813750,1745459444549,-293.03148179,0.00022191,2]
[358813751,1745459444559,-506.20712776,0.00022191,2]
[358813752,1745459444568,-500.0,0.00022191,2]
[358813753,1745459444578,-500.0,0.00022191,2]
[358813754,1745459444587,-500.0,0.00022191,2]